[Event "Titled Tuesday Blitz July 11 Early 2023"]
[White "Seletsky, Grigory"]
[Black "Manukian, Artak"]
[WhiteFideId "14112191"]
[BlackFideId "13301373"]
[WhiteElo "2376"]
[BlackElo "2489"]
[Result "1/2-1/2"]
[Round "8"]
[TimeControl "180+2"]
[Date "2023.07.11"]
[WhiteClock "0:00:05"]
[BlackClock "0:00:48"]
[Board "121"]

1. d4 {[%clk 0:02:49]}  d5 {[%clk 0:02:59]} 2. c4 {[%clk 0:02:48]}  dxc4 {[%clk 0:02:59]} 3. Nc3 {[%clk 0:02:48]}  c5 {[%clk 0:02:58]} 4. d5 {[%clk 0:02:47]}  e6 {[%clk 0:02:58]} 5. e4 {[%clk 0:02:48]}  exd5 {[%clk 0:02:58]} 6. exd5 {[%clk 0:02:48]}  Nf6 {[%clk 0:02:58]} 7. Bxc4 {[%clk 0:02:48]}  Bd6 {[%clk 0:02:58]} 8. Nf3 {[%clk 0:02:47]}  O-O {[%clk 0:02:56]} 9. O-O {[%clk 0:02:48]}  Bg4 {[%clk 0:02:55]} 10. Bg5 {[%clk 0:02:48]}  Re8 {[%clk 0:02:49]} 11. h3 {[%clk 0:02:43]}  Bh5 {[%clk 0:02:49]} 12. g4 {[%clk 0:02:38]}  Bg6 {[%clk 0:02:46]} 13. Nh4 {[%clk 0:02:30]}  h6 {[%clk 0:02:42]} 14. Nxg6 {[%clk 0:02:29]}  fxg6 {[%clk 0:02:42]} 15. Bd2 {[%clk 0:02:20]}  g5 {[%clk 0:02:34]} 16. Qb3 {[%clk 0:02:14]}  Nbd7 {[%clk 0:02:24]} 17. Nb5 {[%clk 0:02:13]}  Ne5 {[%clk 0:02:20]} 18. Rfe1 {[%clk 0:02:08]}  a6 {[%clk 0:02:10]} 19. Nxd6 {[%clk 0:02:07]}  Qxd6 {[%clk 0:02:11]} 20. Rxe5 {[%clk 0:01:29]}  Rxe5 {[%clk 0:02:06]} 21. Qxb7 {[%clk 0:01:25]}  Rae8 {[%clk 0:01:55]} 22. Qxa6 {[%clk 0:01:20]}  Qxa6 {[%clk 0:01:53]} 23. Bxa6 {[%clk 0:01:19]}  Nxd5 {[%clk 0:01:53]} 24. Bc4 {[%clk 0:01:18]}  Kh8 {[%clk 0:01:51]} 25. Bxd5 {[%clk 0:01:17]}  Rxd5 {[%clk 0:01:51]} 26. Bc3 {[%clk 0:01:16]}  Red8 {[%clk 0:01:40]} 27. a4 {[%clk 0:01:10]}  Rd1+ {[%clk 0:01:40]} 28. Rxd1 {[%clk 0:01:10]}  Rxd1+ {[%clk 0:01:40]} 29. Kg2 {[%clk 0:01:11]}  Kg8 {[%clk 0:01:38]} 30. Kf3 {[%clk 0:01:03]}  Kf7 {[%clk 0:01:34]} 31. Ke4 {[%clk 0:01:00]}  g6 {[%clk 0:01:34]} 32. a5 {[%clk 0:00:58]}  Ke6 {[%clk 0:01:34]} 33. Kf3 {[%clk 0:00:19]}  Kd5 {[%clk 0:01:27]} 34. Kg2 {[%clk 0:00:17]}  Ra1 {[%clk 0:01:21]} 35. Kf3 {[%clk 0:00:14]}  Ra4 {[%clk 0:01:17]} 36. Ke3 {[%clk 0:00:13]}  h5 {[%clk 0:01:11]} 37. f3 {[%clk 0:00:10]}  Ra1 {[%clk 0:01:06]} 38. Kf2 {[%clk 0:00:07]}  Kc4 {[%clk 0:00:59]} 39. Kg2 {[%clk 0:00:07]}  Kd3 {[%clk 0:00:58]} 40. Bf6 {[%clk 0:00:07]}  Rxa5 {[%clk 0:00:57]} 41. Bxg5 {[%clk 0:00:05]}  c4 {[%clk 0:00:56]} 42. Bf6 {[%clk 0:00:05]}  Kc2 {[%clk 0:00:53]} 43. Kg3 {[%clk 0:00:06]}  Rb5 {[%clk 0:00:51]} 44. f4 {[%clk 0:00:06]}  hxg4 {[%clk 0:00:49]} 45. hxg4 {[%clk 0:00:05]}  Rxb2 {[%clk 0:00:49]} 46. Bxb2 {[%clk 0:00:04]}  Kxb2 {[%clk 0:00:50]} 47. f5 {[%clk 0:00:04]}  gxf5 {[%clk 0:00:48]} 48. gxf5 {[%clk 0:00:05]}  c3 {[%clk 0:00:48]} 49. f6 {[%clk 0:00:06]}  c2 {[%clk 0:00:49]} 50. f7 {[%clk 0:00:07]}  c1=Q {[%clk 0:00:49]} 51. f8=Q {[%clk 0:00:07]}  Qg1+ {[%clk 0:00:50]} 52. Kh3 {[%clk 0:00:07]}  Qh1+ {[%clk 0:00:49]} 53. Kg3 {[%clk 0:00:08]}  Qe1+ {[%clk 0:00:49]} 54. Kh3 {[%clk 0:00:07]}  Qe3+ {[%clk 0:00:48]} 55. Kg2 {[%clk 0:00:07]}  Qe4+ {[%clk 0:00:48]} 56. Qf3 {[%clk 0:00:07]}  Qc2+ {[%clk 0:00:48]} 57. Qf2 {[%clk 0:00:07]}  Kc3 {[%clk 0:00:47]} 58. Qxc2+ {[%clk 0:00:05]}  Kxc2 {[%clk 0:00:48]} 1/2-1/2


[Site "https://www.chess.com"]

[Event "Titled Tuesday Blitz July 11 Early 2023"]
[White "Ahn, Hongjin"]
[Black "Novikov, Evgenij"]
[WhiteFideId "13201492"]
[BlackFideId "4125380"]
[WhiteElo "2378"]
[BlackElo "2486"]
[Result "0-1"]
[Round "8"]
[TimeControl "180+2"]
[Date "2023.07.11"]
[WhiteClock "0:00:00"]
[BlackClock "0:02:16"]
[Board "122"]

1. e4 {[%clk 0:02:55]}  c5 {[%clk 0:02:57]} 2. d3 {[%clk 0:02:54]}  Nc6 {[%clk 0:02:57]} 3. f4 {[%clk 0:02:54]}  g6 {[%clk 0:02:55]} 4. Nf3 {[%clk 0:02:53]}  Bg7 {[%clk 0:02:55]} 5. g3 {[%clk 0:02:54]}  Nh6 {[%clk 0:02:55]} 6. Bg2 {[%clk 0:02:55]}  O-O {[%clk 0:02:55]} 7. O-O {[%clk 0:02:55]}  f5 {[%clk 0:02:55]} 8. e5 {[%clk 0:02:55]}  d6 {[%clk 0:02:55]} 9. Re1 {[%clk 0:02:47]}  dxe5 {[%clk 0:02:54]} 10. fxe5 {[%clk 0:02:47]}  Ng4 {[%clk 0:02:40]} 11. Bf4 {[%clk 0:02:30]}  Ncxe5 {[%clk 0:02:29]} 12. Nbd2 {[%clk 0:00:02]}  Nxf3+ {[%clk 0:02:25]} 13. Nxf3 {[%clk 0:00:02]}  Bxb2 {[%clk 0:02:26]} 14. h3 {[%clk 0:00:01]}  Bf6 {[%clk 0:02:27]} 15. hxg4 {[%clk 0:00:01]}  fxg4 {[%clk 0:02:27]} 16. Nd2 {[%clk 0:00:02]}  Bxa1 {[%clk 0:02:28]} 17. Qxa1 {[%clk 0:00:02]}  Bf5 {[%clk 0:02:24]} 18. c4 {[%clk 0:00:02]}  Qxd3 {[%clk 0:02:23]} 19. Bc6 {[%clk 0:00:02]}  bxc6 {[%clk 0:02:18]} 20. Bh6 {[%clk 0:00:00]}  Qxg3+ {[%clk 0:02:16]} 0-1


[Site "https://www.chess.com"]

[Event "Titled Tuesday Blitz July 11 Early 2023"]
[White "Kopczynski, Michal"]
[Black "Xavier_mompel"]
[WhiteFideId "1124200"]
[WhiteElo "2467"]
[BlackElo "2268"]
[Result "1-0"]
[Round "8"]
[TimeControl "180+2"]
[Date "2023.07.11"]
[WhiteClock "0:01:41"]
[BlackClock "0:01:06"]
[Board "127"]

1. e4 {[%clk 0:03:00]}  c5 {[%clk 0:02:59]} 2. d4 {[%clk 0:03:01]}  cxd4 {[%clk 0:02:59]} 3. c3 {[%clk 0:03:02]}  dxc3 {[%clk 0:02:59]} 4. Nxc3 {[%clk 0:03:02]}  Nc6 {[%clk 0:03:00]} 5. f4 {[%clk 0:03:03]}  e6 {[%clk 0:02:57]} 6. Nf3 {[%clk 0:03:04]}  d6 {[%clk 0:02:50]} 7. Bd3 {[%clk 0:03:04]}  Nf6 {[%clk 0:02:47]} 8. O-O {[%clk 0:03:04]}  Be7 {[%clk 0:02:47]} 9. Kh1 {[%clk 0:03:05]}  O-O {[%clk 0:02:47]} 10. Qe1 {[%clk 0:03:05]}  b6 {[%clk 0:02:45]} 11. Be3 {[%clk 0:03:03]}  Bb7 {[%clk 0:02:45]} 12. Rd1 {[%clk 0:03:03]}  Qc7 {[%clk 0:02:42]} 13. Qg3 {[%clk 0:03:01]}  Rad8 {[%clk 0:02:31]} 14. e5 {[%clk 0:03:01]}  dxe5 {[%clk 0:02:29]} 15. fxe5 {[%clk 0:03:02]}  Nd5 {[%clk 0:02:25]} 16. Bh6 {[%clk 0:03:01]}  g6 {[%clk 0:02:20]} 17. Ne4 {[%clk 0:02:55]}  f5 {[%clk 0:02:12]} 18. exf6 {[%clk 0:02:20]}  Qxg3 {[%clk 0:02:11]} 19. fxe7 {[%clk 0:02:20]}  Qc7 {[%clk 0:01:54]} 20. exf8=Q+ {[%clk 0:02:18]}  Rxf8 {[%clk 0:01:53]} 21. Bxf8 {[%clk 0:02:19]}  Kxf8 {[%clk 0:01:54]} 22. Nfg5+ {[%clk 0:02:11]}  Ke8 {[%clk 0:01:33]} 23. Nxe6 {[%clk 0:02:10]}  Qe7 {[%clk 0:01:29]} 24. Rde1 {[%clk 0:02:06]}  Kd7 {[%clk 0:01:26]} 25. Nf8+ {[%clk 0:01:58]}  Kc7 {[%clk 0:01:26]} 26. Nc3 {[%clk 0:01:50]}  Qc5 {[%clk 0:01:10]} 27. Ne6+ {[%clk 0:01:40]}  Kd6 {[%clk 0:01:10]} 28. Nxc5 {[%clk 0:01:41]}  Nxc3 {[%clk 0:01:06]} 29. Nxb7+ {[%clk 0:01:41]} 1-0


[Site "https://www.chess.com"]

[Event "Titled Tuesday Blitz July 11 Early 2023"]
[White "Kiseleva, Arina"]
[Black "Kukreja Sankalp"]
[WhiteFideId "4164989"]
[BlackFideId "45027676"]
[WhiteElo "2201"]
[BlackElo "2440"]
[Result "0-1"]
[Round "8"]
[TimeControl "180+2"]
[Date "2023.07.11"]
[WhiteClock "0:00:00"]
[BlackClock "0:00:33"]
[Board "131"]

1. d4 {[%clk 0:03:00]}  d5 {[%clk 0:02:56]} 2. Nf3 {[%clk 0:03:00]}  Nf6 {[%clk 0:02:56]} 3. e3 {[%clk 0:03:00]}  Bf5 {[%clk 0:02:56]} 4. Bd3 {[%clk 0:03:00]}  Bxd3 {[%clk 0:02:56]} 5. cxd3 {[%clk 0:03:01]}  e6 {[%clk 0:02:56]} 6. O-O {[%clk 0:03:00]}  Bd6 {[%clk 0:02:56]} 7. Re1 {[%clk 0:02:57]}  c5 {[%clk 0:02:45]} 8. dxc5 {[%clk 0:02:53]}  Bxc5 {[%clk 0:02:46]} 9. Qa4+ {[%clk 0:02:44]}  Qd7 {[%clk 0:02:45]} 10. Qh4 {[%clk 0:02:41]}  Nc6 {[%clk 0:02:43]} 11. e4 {[%clk 0:02:30]}  Nb4 {[%clk 0:02:14]} 12. e5 {[%clk 0:02:06]}  Nxd3 {[%clk 0:01:59]} 13. exf6 {[%clk 0:02:02]}  Bxf2+ {[%clk 0:01:59]} 14. Qxf2 {[%clk 0:01:58]}  Nxf2 {[%clk 0:02:00]} 15. fxg7 {[%clk 0:01:52]}  Rg8 {[%clk 0:01:59]} 16. Kxf2 {[%clk 0:01:42]}  Rxg7 {[%clk 0:01:59]} 17. Nc3 {[%clk 0:01:35]}  Rc8 {[%clk 0:01:30]} 18. Bf4 {[%clk 0:01:26]}  Rg4 {[%clk 0:01:24]} 19. g3 {[%clk 0:01:24]}  Qe7 {[%clk 0:01:19]} 20. Nxd5 {[%clk 0:01:09]}  Rc2+ {[%clk 0:01:18]} 21. Kf1 {[%clk 0:00:54]}  Qc5 {[%clk 0:01:12]} 22. Nf6+ {[%clk 0:00:50]}  Ke7 {[%clk 0:00:55]} 23. Nxg4 {[%clk 0:00:46]}  h5 {[%clk 0:00:54]} 24. Ne3 {[%clk 0:00:41]}  Rxb2 {[%clk 0:00:53]} 25. Rad1 {[%clk 0:00:28]}  Qc6 {[%clk 0:00:43]} 26. Ng1 {[%clk 0:00:04]}  Kf8 {[%clk 0:00:36]} 27. Bg5 {[%clk 0:00:00]}  Qa6+ {[%clk 0:00:33]} 0-1


[Site "https://www.chess.com"]

[Event "Titled Tuesday Blitz July 11 Early 2023"]
[White "Sailer, Mike"]
[Black "Stork, Oliver"]
[WhiteFideId "2012901"]
[BlackFideId "12955728"]
[WhiteElo "2159"]
[BlackElo "2428"]
[Result "0-1"]
[Round "8"]
[TimeControl "180+2"]
[Date "2023.07.11"]
[WhiteClock "0:00:00"]
[BlackClock "0:00:16"]
[Board "133"]

1. d4 {[%clk 0:02:59]}  Nf6 {[%clk 0:02:59]} 2. Nc3 {[%clk 0:02:59]}  d5 {[%clk 0:02:59]} 3. Bf4 {[%clk 0:02:59]}  g6 {[%clk 0:02:58]} 4. Nf3 {[%clk 0:02:50]}  Bg7 {[%clk 0:02:58]} 5. e3 {[%clk 0:02:43]}  O-O {[%clk 0:02:56]} 6. Ne5 {[%clk 0:02:41]}  c5 {[%clk 0:02:56]} 7. Be2 {[%clk 0:02:40]}  Nc6 {[%clk 0:02:53]} 8. O-O {[%clk 0:02:27]}  cxd4 {[%clk 0:02:52]} 9. exd4 {[%clk 0:02:27]}  Qb6 {[%clk 0:02:52]} 10. Nxc6 {[%clk 0:02:22]}  bxc6 {[%clk 0:02:51]} 11. Na4 {[%clk 0:02:19]}  Qd8 {[%clk 0:02:49]} 12. Be5 {[%clk 0:02:10]}  Bf5 {[%clk 0:02:44]} 13. c3 {[%clk 0:02:05]}  h5 {[%clk 0:01:56]} 14. b4 {[%clk 0:01:44]}  h4 {[%clk 0:01:51]} 15. h3 {[%clk 0:01:42]}  Qc8 {[%clk 0:01:45]} 16. Nc5 {[%clk 0:01:27]}  Ne4 {[%clk 0:01:35]} 17. Nxe4 {[%clk 0:01:12]}  Bxe5 {[%clk 0:01:14]} 18. Nc5 {[%clk 0:01:01]}  Bd6 {[%clk 0:01:08]} 19. Ba6 {[%clk 0:00:51]}  Qc7 {[%clk 0:01:03]} 20. Bd3 {[%clk 0:00:30]}  Qc8 {[%clk 0:00:29]} 21. Bxf5 {[%clk 0:00:27]}  Qxf5 {[%clk 0:00:30]} 22. Qd2 {[%clk 0:00:14]}  a5 {[%clk 0:00:17]} 23. a3 {[%clk 0:00:14]}  axb4 {[%clk 0:00:17]} 24. axb4 {[%clk 0:00:12]}  Bxc5 {[%clk 0:00:17]} 25. dxc5 {[%clk 0:00:06]}  e5 {[%clk 0:00:17]} 26. Rxa8 {[%clk 0:00:03]}  Rxa8 {[%clk 0:00:18]} 27. Qb2 {[%clk 0:00:02]}  e4 {[%clk 0:00:17]} 28. Ra1 {[%clk 0:00:01]}  Rxa1+ {[%clk 0:00:16]} 29. Qxa1 {[%clk 0:00:00]}  Qf6 {[%clk 0:00:16]} 0-1


[Site "https://www.chess.com"]

[Event "Titled Tuesday Blitz July 11 Early 2023"]
[White "Mangialardo, Tiago Carvalho"]
[Black "Herman, Daniel"]
[WhiteFideId "2130718"]
[BlackFideId "30935008"]
[WhiteElo "2150"]
[BlackElo "2426"]
[Result "0-1"]
[Round "8"]
[TimeControl "180+2"]
[Date "2023.07.11"]
[WhiteClock "0:00:00"]
[BlackClock "0:00:36"]
[Board "134"]

1. e4 {[%clk 0:02:04]}  e6 {[%clk 0:02:59]} 2. d4 {[%clk 0:02:04]}  d5 {[%clk 0:02:59]} 3. exd5 {[%clk 0:02:05]}  exd5 {[%clk 0:03:00]} 4. c4 {[%clk 0:02:06]}  Nf6 {[%clk 0:02:59]} 5. Nc3 {[%clk 0:02:05]}  Bd6 {[%clk 0:02:59]} 6. Nf3 {[%clk 0:01:59]}  O-O {[%clk 0:02:59]} 7. c5 {[%clk 0:01:58]}  Be7 {[%clk 0:02:59]} 8. Be2 {[%clk 0:01:57]}  Bf5 {[%clk 0:02:42]} 9. O-O {[%clk 0:01:56]}  c6 {[%clk 0:02:30]} 10. Ne5 {[%clk 0:01:51]}  Nbd7 {[%clk 0:02:29]} 11. Bf4 {[%clk 0:01:46]}  Nxe5 {[%clk 0:02:16]} 12. Bxe5 {[%clk 0:01:42]}  Qd7 {[%clk 0:02:13]} 13. Bd3 {[%clk 0:01:30]}  Rfe8 {[%clk 0:02:10]} 14. f3 {[%clk 0:01:19]}  h6 {[%clk 0:01:53]} 15. Re1 {[%clk 0:01:14]}  b6 {[%clk 0:01:36]} 16. b4 {[%clk 0:00:51]}  a5 {[%clk 0:01:33]} 17. a3 {[%clk 0:00:43]}  axb4 {[%clk 0:01:32]} 18. Bxf5 {[%clk 0:00:41]}  Qxf5 {[%clk 0:01:33]} 19. axb4 {[%clk 0:00:41]}  bxc5 {[%clk 0:01:17]} 20. bxc5 {[%clk 0:00:37]}  Rxa1 {[%clk 0:01:09]} 21. Qxa1 {[%clk 0:00:36]}  Bf8 {[%clk 0:01:01]} 22. Qb1 {[%clk 0:00:29]}  Qxb1 {[%clk 0:00:53]} 23. Rxb1 {[%clk 0:00:29]}  Nd7 {[%clk 0:00:53]} 24. Bg3 {[%clk 0:00:27]}  g5 {[%clk 0:00:47]} 25. Rb7 {[%clk 0:00:25]}  Bg7 {[%clk 0:00:44]} 26. Bf2 {[%clk 0:00:16]}  Nxc5 {[%clk 0:00:44]} 27. dxc5 {[%clk 0:00:03]}  Bxc3 {[%clk 0:00:45]} 28. Rc7 {[%clk 0:00:02]}  Re6 {[%clk 0:00:44]} 29. h4 {[%clk 0:00:02]}  gxh4 {[%clk 0:00:38]} 30. Kf1 {[%clk 0:00:02]}  Bf6 {[%clk 0:00:37]} 31. Be1 {[%clk 0:00:00]}  Kg7 {[%clk 0:00:36]} 0-1


[Site "https://www.chess.com"]

[Event "Titled Tuesday Blitz July 11 Early 2023"]
[White "Khromkin, Andrey"]
[Black "Hrescak, Ivana"]
[WhiteFideId "4154126"]
[BlackFideId "14613441"]
[WhiteElo "2425"]
[BlackElo "2158"]
[Result "1-0"]
[Round "8"]
[TimeControl "180+2"]
[Date "2023.07.11"]
[WhiteClock "0:00:18"]
[BlackClock "0:00:07"]
[Board "135"]

1. d4 {[%clk 0:03:00]}  d5 {[%clk 0:02:59]} 2. c4 {[%clk 0:03:00]}  c6 {[%clk 0:03:00]} 3. Nc3 {[%clk 0:03:01]}  Nf6 {[%clk 0:03:00]} 4. Nf3 {[%clk 0:03:01]}  dxc4 {[%clk 0:03:00]} 5. a4 {[%clk 0:03:01]}  Bf5 {[%clk 0:02:59]} 6. Ne5 {[%clk 0:03:01]}  Nbd7 {[%clk 0:02:57]} 7. Nxc4 {[%clk 0:03:01]}  Nb6 {[%clk 0:02:57]} 8. Ne5 {[%clk 0:02:48]}  a5 {[%clk 0:02:56]} 9. f3 {[%clk 0:02:46]}  Nfd7 {[%clk 0:02:56]} 10. Nxd7 {[%clk 0:02:44]}  Qxd7 {[%clk 0:02:49]} 11. e4 {[%clk 0:02:44]}  Bg6 {[%clk 0:02:44]} 12. d5 {[%clk 0:02:39]}  e6 {[%clk 0:02:34]} 13. Be3 {[%clk 0:02:39]}  Nc8 {[%clk 0:02:15]} 14. Qb3 {[%clk 0:02:20]}  Bb4 {[%clk 0:02:13]} 15. dxe6 {[%clk 0:02:17]}  Qxe6 {[%clk 0:02:05]} 16. Bc4 {[%clk 0:02:17]}  Qe5 {[%clk 0:02:02]} 17. O-O {[%clk 0:02:13]}  Nd6 {[%clk 0:01:43]} 18. f4 {[%clk 0:02:07]}  Qe7 {[%clk 0:01:40]} 19. f5 {[%clk 0:01:37]}  Bh5 {[%clk 0:01:40]} 20. Bd4 {[%clk 0:01:16]}  Nxc4 {[%clk 0:01:27]} 21. Qxc4 {[%clk 0:01:14]}  O-O-O {[%clk 0:01:25]} 22. f6 {[%clk 0:00:27]}  gxf6 {[%clk 0:00:43]} 23. Bxf6 {[%clk 0:00:24]}  Qc7 {[%clk 0:00:42]} 24. Bxh8 {[%clk 0:00:22]}  Rxh8 {[%clk 0:00:42]} 25. Rac1 {[%clk 0:00:21]}  Kb8 {[%clk 0:00:34]} 26. Nd5 {[%clk 0:00:21]}  Qe5 {[%clk 0:00:21]} 27. Nxb4 {[%clk 0:00:20]}  axb4 {[%clk 0:00:22]} 28. Qxb4 {[%clk 0:00:21]}  Qe6 {[%clk 0:00:15]} 29. Qc5 {[%clk 0:00:19]}  Rg8 {[%clk 0:00:14]} 30. Qxh5 {[%clk 0:00:17]}  Qxe4 {[%clk 0:00:11]} 31. Qf3 {[%clk 0:00:17]}  Qd4+ {[%clk 0:00:11]} 32. Kh1 {[%clk 0:00:18]}  Qxa4 {[%clk 0:00:11]} 33. Qf4+ {[%clk 0:00:18]}  Qxf4 {[%clk 0:00:07]} 34. Rxf4 {[%clk 0:00:18]} 1-0


[Site "https://www.chess.com"]

[Event "Titled Tuesday Blitz July 11 Early 2023"]
[White "Sava, Christiansen-Danut-Eugen"]
[Black "Magallanes, Rey Jomar"]
[WhiteFideId "1210114"]
[BlackFideId "5205948"]
[WhiteElo "2049"]
[BlackElo "2283"]
[Result "1-0"]
[Round "8"]
[TimeControl "180+2"]
[Date "2023.07.11"]
[WhiteClock "0:01:46"]
[BlackClock "0:01:51"]
[Board "137"]

1. d4 {[%clk 0:03:00]}  d5 {[%clk 0:02:58]} 2. c4 {[%clk 0:02:59]}  e6 {[%clk 0:02:58]} 3. g3 {[%clk 0:02:47]}  Nf6 {[%clk 0:02:58]} 4. Bg2 {[%clk 0:02:47]}  c6 {[%clk 0:02:57]} 5. Qc2 {[%clk 0:02:44]}  Be7 {[%clk 0:02:57]} 6. Nd2 {[%clk 0:02:44]}  O-O {[%clk 0:02:58]} 7. Ngf3 {[%clk 0:02:44]}  b6 {[%clk 0:02:57]} 8. O-O {[%clk 0:02:44]}  Bb7 {[%clk 0:02:57]} 9. e4 {[%clk 0:02:39]}  c5 {[%clk 0:02:55]} 10. cxd5 {[%clk 0:02:29]}  exd5 {[%clk 0:02:52]} 11. dxc5 {[%clk 0:02:28]}  bxc5 {[%clk 0:02:52]} 12. exd5 {[%clk 0:02:29]}  Nxd5 {[%clk 0:02:49]} 13. a3 {[%clk 0:02:27]}  Nc6 {[%clk 0:02:49]} 14. Nc4 {[%clk 0:02:25]}  Rc8 {[%clk 0:02:47]} 15. Rd1 {[%clk 0:02:24]}  Nd4 {[%clk 0:02:34]} 16. Qd3 {[%clk 0:02:02]}  Bf6 {[%clk 0:02:22]} 17. Nxd4 {[%clk 0:01:54]}  cxd4 {[%clk 0:02:21]} 18. Bd2 {[%clk 0:01:48]}  Ba6 {[%clk 0:02:21]} 19. b3 {[%clk 0:01:48]}  Nb6 {[%clk 0:02:16]} 20. Ba5 {[%clk 0:01:48]}  Qe7 {[%clk 0:02:10]} 21. Bb4 {[%clk 0:01:46]}  Qd7 {[%clk 0:02:03]} 22. Bxf8 {[%clk 0:01:46]}  Rxf8 {[%clk 0:01:51]} 23. Nxb6 {[%clk 0:01:46]} 1-0


[Site "https://www.chess.com"]

[Event "Titled Tuesday Blitz July 11 Early 2023"]
[White "tomobeast"]
[Black "MateoReyes"]
[WhiteElo "2276"]
[BlackElo "2469"]
[Result "0-1"]
[Round "8"]
[TimeControl "180+2"]
[Date "2023.07.11"]
[WhiteClock "0:00:18"]
[BlackClock "0:02:02"]
[Board "143"]

1. e4 {[%clk 0:02:44]}  c5 {[%clk 0:02:58]} 2. Nf3 {[%clk 0:02:43]}  d6 {[%clk 0:02:58]} 3. d4 {[%clk 0:02:43]}  cxd4 {[%clk 0:02:58]} 4. Nxd4 {[%clk 0:02:44]}  Nf6 {[%clk 0:02:58]} 5. Nc3 {[%clk 0:02:44]}  a6 {[%clk 0:02:58]} 6. Bg5 {[%clk 0:02:44]}  e6 {[%clk 0:02:58]} 7. f4 {[%clk 0:02:32]}  Nbd7 {[%clk 0:02:57]} 8. Qf3 {[%clk 0:02:28]}  Qc7 {[%clk 0:02:57]} 9. O-O-O {[%clk 0:02:27]}  Be7 {[%clk 0:02:57]} 10. g4 {[%clk 0:02:27]}  h6 {[%clk 0:02:57]} 11. Bxf6 {[%clk 0:02:23]}  Nxf6 {[%clk 0:02:56]} 12. h4 {[%clk 0:02:10]}  g6 {[%clk 0:02:55]} 13. Bd3 {[%clk 0:02:06]}  Bd7 {[%clk 0:02:54]} 14. Rhe1 {[%clk 0:02:05]}  O-O-O {[%clk 0:02:53]} 15. e5 {[%clk 0:02:03]}  Ne8 {[%clk 0:02:38]} 16. Bxa6 {[%clk 0:01:24]}  bxa6 {[%clk 0:02:21]} 17. Qa8+ {[%clk 0:01:25]}  Qb8 {[%clk 0:02:20]} 18. Qxa6+ {[%clk 0:01:26]}  Qb7 {[%clk 0:02:21]} 19. Qc4+ {[%clk 0:01:25]}  Kb8 {[%clk 0:02:20]} 20. Ncb5 {[%clk 0:01:21]}  Rc8 {[%clk 0:02:17]} 21. Qb4 {[%clk 0:01:03]}  Bxb5 {[%clk 0:02:16]} 22. Nxb5 {[%clk 0:00:58]}  d5 {[%clk 0:02:15]} 23. Qa4 {[%clk 0:00:56]}  Rc4 {[%clk 0:02:14]} 24. Qa5 {[%clk 0:00:50]}  Bb4 {[%clk 0:02:06]} 25. Qd8+ {[%clk 0:00:50]}  Rc8 {[%clk 0:02:06]} 26. Rxd5 {[%clk 0:00:29]}  exd5 {[%clk 0:02:03]} 27. Qxd5 {[%clk 0:00:18]}  Qxd5 {[%clk 0:02:02]} 0-1


[Site "https://www.chess.com"]

[Event "Titled Tuesday Blitz July 11 Early 2023"]
[White "Balla, Tamas-Kristof"]
[Black "rionelG"]
[WhiteFideId "1208497"]
[WhiteElo "2440"]
[BlackElo "2250"]
[Result "0-1"]
[Round "8"]
[TimeControl "180+2"]
[Date "2023.07.11"]
[WhiteClock "0:00:20"]
[BlackClock "0:00:35"]
[Board "151"]

1. e4 {[%clk 0:03:00]}  c5 {[%clk 0:02:57]} 2. Nf3 {[%clk 0:02:58]}  d6 {[%clk 0:02:57]} 3. d4 {[%clk 0:02:58]}  cxd4 {[%clk 0:02:58]} 4. Qxd4 {[%clk 0:02:59]}  Nc6 {[%clk 0:02:57]} 5. Qe3 {[%clk 0:02:59]}  Nf6 {[%clk 0:02:56]} 6. h3 {[%clk 0:03:00]}  g6 {[%clk 0:02:55]} 7. Be2 {[%clk 0:03:00]}  Bg7 {[%clk 0:02:55]} 8. O-O {[%clk 0:03:00]}  O-O {[%clk 0:02:55]} 9. Rd1 {[%clk 0:03:01]}  Nd7 {[%clk 0:02:52]} 10. c4 {[%clk 0:03:00]}  b6 {[%clk 0:02:50]} 11. Nc3 {[%clk 0:02:58]}  a6 {[%clk 0:02:50]} 12. b3 {[%clk 0:02:58]}  Bb7 {[%clk 0:02:50]} 13. Bb2 {[%clk 0:02:58]}  Nce5 {[%clk 0:02:34]} 14. Rac1 {[%clk 0:02:54]}  Qb8 {[%clk 0:02:26]} 15. Ba3 {[%clk 0:02:35]}  Nxf3+ {[%clk 0:02:22]} 16. Bxf3 {[%clk 0:02:32]}  Bc6 {[%clk 0:02:21]} 17. Nd5 {[%clk 0:02:31]}  Bxd5 {[%clk 0:02:20]} 18. exd5 {[%clk 0:02:17]}  Re8 {[%clk 0:02:20]} 19. Re1 {[%clk 0:02:12]}  b5 {[%clk 0:02:19]} 20. Bg4 {[%clk 0:02:03]}  Ne5 {[%clk 0:02:11]} 21. Bd1 {[%clk 0:01:53]}  b4 {[%clk 0:02:02]} 22. Bb2 {[%clk 0:01:50]}  Nf3+ {[%clk 0:02:02]} 23. Bxf3 {[%clk 0:01:42]}  Bxb2 {[%clk 0:02:03]} 24. Rc2 {[%clk 0:01:40]}  Bc3 {[%clk 0:02:00]} 25. Ree2 {[%clk 0:01:29]}  a5 {[%clk 0:01:48]} 26. h4 {[%clk 0:01:28]}  h5 {[%clk 0:01:44]} 27. g4 {[%clk 0:01:03]}  hxg4 {[%clk 0:01:43]} 28. Bxg4 {[%clk 0:01:04]}  Kg7 {[%clk 0:01:39]} 29. h5 {[%clk 0:00:54]}  Bf6 {[%clk 0:01:39]} 30. hxg6 {[%clk 0:00:52]}  fxg6 {[%clk 0:01:37]} 31. f3 {[%clk 0:00:50]}  Rh8 {[%clk 0:01:25]} 32. Rh2 {[%clk 0:00:49]}  a4 {[%clk 0:01:23]} 33. Rxh8 {[%clk 0:00:48]}  Qxh8 {[%clk 0:01:20]} 34. Rh2 {[%clk 0:00:47]}  Bh4 {[%clk 0:00:49]} 35. Be6 {[%clk 0:00:32]}  axb3 {[%clk 0:00:36]} 36. Qd4+ {[%clk 0:00:25]}  Bf6 {[%clk 0:00:35]} 37. Rxh8 {[%clk 0:00:20]}  Bxd4+ {[%clk 0:00:35]} 0-1


[Site "https://www.chess.com"]